bitfinex/quotes_ETHUSD_20251017
["timestamp","ask_amount","ask_price","bid_price","bid_amount"]
[1760691435450,0.002,3716.1,3715.1,0.1909]
[1760691435754,0.002,3716.1,3715.2,0.444]
[1760691435959,0.002,3716.1,3715.3,2.69157268]
[1760691436114,0.002,3716.1,3715.2,0.444]
[1760691436461,0.002,3716.1,3716.0,2.69106566]
[1760691436665,0.002,3716.1,3716.0,2.96017223]
[1760691436817,0.002,3716.1,3716.0,0.26910657]
[1760691437017,0.002,3716.1,3715.6,0.444]
[1760691437243,0.002,3716.1,3715.8,2.69114872]
[1760691437420,0.002,3716.1,3715.7,0.444]
[1760691437616,0.002,3716.1,3716.0,0.1344]
[1760691438735,0.002,3716.1,3716.0,3.13506566]
[1760691438938,0.002,3716.1,3716.0,0.7170268]
[1760691439130,0.002,3716.1,3716.0,2.82546566]
[1760691439720,0.002,3716.1,3716.0,0.1344]
[1760691439922,0.002,3716.1,3716.0,2.82546566]
[1760691440120,0.002,3716.5,3716.4,2.69077601]
[1760691440421,0.002,3716.5,3716.4,9.31023377]
[1760691440754,0.076,3718.0,3716.8,17.48131643]
[1760691440919,0.076,3718.0,3716.8,4.41848643]
[1760691441123,0.2212,3717.7,3716.8,3.13448643]
[1760691441321,0.2212,3717.7,3716.8,2.69048643]
[1760691441951,0.076,3718.0,3716.8,3.14898643]
[1760691442122,0.076,3718.0,3716.8,9.78817002]
[1760691442321,0.076,3718.0,3716.8,8.10921016]
[1760691443053,0.076,3718.0,3716.8,21.25650716]
[1760691443256,0.076,3718.0,3716.8,16.38186916]
[1760691443636,0.04688498,3718.5,3716.8,16.38186916]
[1760691443852,0.002,3718.9,3716.8,16.38186916]
[1760691444020,0.002,3718.9,3716.8,21.25650716]
[1760691444223,0.1171,3718.9,3716.8,21.25650716]
[1760691444468,0.1171,3718.9,3716.8,16.07321516]
[1760691444679,0.4377,3718.7,3716.8,8.55296716]
[1760691444829,0.4377,3718.7,3716.8,11.39496716]
[1760691445030,0.4377,3718.7,3716.8,8.93654816]
[1760691445226,0.1171,3718.9,3716.8,24.09850716]
[1760691445433,0.1171,3718.9,3718.8,2.68903947]
[1760691445434,0.002,3718.9,3718.8,2.68903947]
[1760691445740,0.002,3718.9,3718.8,10.8322083]
[1760691445955,0.002,3718.9,3718.8,13.0056203]
[1760691446155,0.002,3718.9,3718.8,13.5657413]
[1760691446340,0.002,3718.9,3718.8,11.2289293]
[1760691446664,0.002,3718.9,3718.8,14.2794123]
[1760691446865,0.002,3718.9,3718.8,11.8969123]
[1760691447168,0.002,3718.9,3718.8,3.8604563]
[1760691447383,0.002,3718.9,3718.8,15.4349893]
[1760691447583,0.002,3718.9,3718.8,7.1599563]
[1760691447736,0.002,3718.9,3718.8,6.7014563]
[1760691448132,0.002,3718.9,3718.8,3.8604563]
[1760691448459,0.0012,3718.9,3718.8,14.1153533]
[1760691448663,0.0012,3718.9,3718.8,5.8764183]
[1760691448982,0.0012,3718.9,3718.8,3.2268563]
[1760691449179,0.0012,3718.9,3718.8,16.4761353]
[1760691449350,0.0012,3718.9,3718.8,9.3718433]
[1760691449551,0.0012,3718.9,3718.8,5.8932253]
[1760691449866,0.0012,3718.9,3718.8,0.53781683]
[1760691450085,0.0012,3718.9,3718.8,3.3612563]
[1760691450548,0.0012,3718.9,3718.8,0.1344]
[1760691450978,0.0012,3718.9,3718.8,2.82343947]
[1760691451298,0.1182,3718.9,3718.8,0.1344]
[1760691451509,0.5559,3718.9,3718.8,0.1344]
[1760691451779,0.5559,3718.9,3718.6,0.1344]
[1760691451980,0.1182,3718.9,3717.7,1.728]
[1760691452217,0.0012,3718.9,3718.7,2.68905161]
[1760691452488,0.0012,3718.9,3718.8,2.68903947]
[1760691453060,0.0012,3718.9,3718.6,2.68913569]
[1760691453265,0.1214,3718.9,3718.1,0.2218]
[1760691453558,0.1214,3718.9,3715.0,3.78956818]
[1760691453559,0.4345,3718.8,3717.0,0.6442]
[1760691453759,0.4345,3718.8,3718.0,2.68956295]
[1760691453962,0.4345,3718.8,3717.8,2.68976276]
[1760691454150,0.4345,3718.8,3717.1,5.53023965]
[1760691454151,0.2168,3717.9,3717.6,2.6899016]
[1760691454590,0.4345,3717.8,3716.5,2.69068233]
[1760691454882,0.2168,3717.9,3717.4,2.68999875]
[1760691455090,0.6513,3717.9,3717.4,2.68999875]
[1760691455379,0.4345,3717.8,3716.6,0.28783823]
[1760691455580,0.4345,3717.8,3716.4,0.4585]
[1760691455581,0.4345,3717.8,3717.1,2.69021076]
[1760691455783,0.4345,3717.8,3717.0,2.69033023]
[1760691456009,0.4345,3717.7,3716.3,0.1877]
[1760691456162,0.4345,3717.7,3716.1,1.728]
[1760691456363,1.9448,3717.9,3716.6,2.69058221]
[1760691456571,0.6336,3717.7,3716.5,0.001]
[1760691456769,0.2168,3716.7,3716.5,0.001]
[1760691457177,0.4389,3716.6,3716.5,0.001]
[1760691458215,0.2168,3716.7,3716.5,0.001]
[1760691458419,0.4389,3717.2,3716.5,0.001]
[1760691458420,0.42207574,3717.2,3716.7,2.69049343]
[1760691458616,0.42207574,3717.2,3716.7,3.22871264]
[1760691458900,0.42207574,3717.2,3716.8,2.69048452]
[1760691459096,0.2168,3717.3,3716.8,2.69048452]
[1760691459292,0.04689507,3717.4,3717.1,2.69026741]
[1760691459469,0.04689507,3717.4,3717.0,2.69032924]
[1760691459672,0.04689507,3717.4,3716.5,0.001]
[1760691459673,0.4389,3717.3,3716.5,0.001]
[1760691460403,0.4389,3717.3,3716.5,2.69170224]
[1760691460699,0.4389,3717.3,3716.5,2.69168486]
[1760691460904,0.04689507,3717.4,3716.5,0.001]
[1760691461195,0.04689507,3717.4,3716.8,2.69048322]
[1760691461406,0.04689507,3717.4,3716.8,2.69043943]
[1760691461571,0.04689507,3717.4,3716.9,2.69040697]
[1760691461768,0.04689507,3717.4,3716.8,2.69047609]
[1760691461973,0.04689507,3717.4,3717.2,0.1344]
[1760691462173,0.48579507,3717.4,3717.2,0.1344]
[1760691462772,0.04689507,3717.4,3717.2,0.1344]
[1760691464008,0.48579507,3717.4,3717.2,0.1344]
[1760691464373,0.04689507,3717.4,3717.2,0.1344]
[1760691465084,0.1884,3718.2,3717.6,2.68990484]
[1760691465383,0.1884,3718.2,3717.3,0.4286]
[1760691465384,2.839,3718.0,3717.8,2.68973969]
[1760691465587,0.42084972,3718.4,3717.8,2.68969174]
[1760691465890,0.6445,3718.6,3717.5,2.68993309]
[1760691466091,0.6445,3718.6,3717.6,2.68989009]
[1760691466389,0.6445,3718.6,3717.5,0.6091122]
[1760691466592,0.6445,3718.6,3717.3,0.4286]
[1760691466795,1.728,3718.4,3717.6,2.68984211]
[1760691466996,1.728,3718.4,3717.7,2.6898271]
[1760691467197,1.728,3718.4,3717.3,0.4286]
[1760691467198,1.728,3718.4,3717.9,2.68964459]
[1760691467377,1.728,3718.4,3717.3,0.4286]
[1760691467790,1.728,3718.4,3717.7,2.68982198]
[1760691467990,1.728,3718.4,3717.3,0.4286]
[1760691468686,1.728,3718.4,3717.6,2.68984801]
[1760691469028,1.728,3718.4,3717.1,0.1857]
[1760691469029,2.1815,3718.4,3717.1,0.1857]
[1760691469223,2.1815,3718.4,3717.8,2.68975978]
[1760691469821,2.1815,3718.4,3717.7,2.68980873]
[1760691470022,2.1815,3718.4,3717.8,2.68975123]
[1760691470223,1.728,3718.4,3717.3,7.168164]
[1760691470422,1.728,3718.4,3717.7,2.68976961]
[1760691470629,1.728,3718.4,3717.8,2.68975981]
[1760691471023,1.728,3718.4,3717.9,2.68968419]
[1760691471222,1.728,3718.4,3717.3,0.4286]
[1760691471847,0.4293,3718.3,3717.1,0.1857]
[1760691472063,0.4285,3718.3,3717.1,0.1857]
[1760691472353,0.4285,3718.3,3717.7,2.68981783]
[1760691472553,0.4285,3718.3,3717.8,2.68972459]
[1760691472758,1.728,3718.4,3717.2,0.4582]
[1760691472914,2.88588095,3718.5,3717.4,4.361822]
[1760691473256,2.839,3718.5,3718.4,2.68932874]
[1760691473413,0.2228,3719.0,3718.4,2.68932874]
[1760691473414,2.839,3718.6,3718.4,2.68932874]
[1760691473608,2.839,3718.6,3718.5,2.68925642]
[1760691473847,2.838,3718.6,3718.1,2.87803599]
[1760691474047,2.838,3718.6,3718.3,2.6893577]
[1760691474258,0.0012,3718.9,3718.3,2.68937653]
[1760691474573,0.0012,3718.9,3718.1,0.4763036]
[1760691474776,0.1263,3718.8,3717.7,0.6467]
[1760691474976,0.1263,3718.8,3717.9,1.728]
[1760691475144,0.0012,3718.9,3718.6,2.68913067]
[1760691475339,0.0012,3718.9,3718.7,2.68910468]
[1760691475563,0.5505,3718.8,3718.6,0.1344]
[1760691475876,0.5505,3718.8,3718.6,2.82355942]
[1760691476075,0.1322,3718.8,3718.6,2.82355942]
[1760691476374,0.1322,3718.8,3718.6,0.1344]
[1760691476975,0.0012,3718.9,3718.6,0.1344]
[1760691477172,0.0012,3718.9,3718.6,2.82356062]
[1760691477352,0.135,3718.8,3718.6,0.1344]
[1760691477677,0.4155,3718.7,3718.4,2.68927436]
[1760691477859,0.4155,3718.7,3718.4,2.82367436]
[1760691478063,0.135,3718.8,3718.5,2.68922]
[1760691478243,0.0012,3718.9,3718.7,2.68904663]
[1760691478442,0.0012,3718.9,3718.7,2.68907011]
[1760691478643,0.0012,3718.9,3718.2,2.6894734]
[1760691478975,0.5514,3718.8,3717.8,1.728]
[1760691479269,0.5514,3718.8,3718.3,2.68937618]
[1760691479499,0.5514,3718.8,3717.8,1.728]
[1760691479803,0.3286,3718.7,3717.8,2.68970545]
[1760691480091,0.3286,3718.7,3717.8,2.68975476]
[1760691480288,0.3286,3718.7,3717.7,2.68978237]
[1760691480456,0.3286,3718.7,3717.1,2.3719]
[1760691480664,0.3362,3718.6,3716.5,0.001]
[1760691481011,2.88507794,3718.9,3718.6,0.1857]
[1760691481154,2.88507794,3718.9,3718.8,2.68903947]
[1760691481342,3.3972,3718.9,3717.3,1.728]
[1760691481541,3.3972,3718.9,3718.0,2.68961673]
[1760691481542,0.3362,3718.8,3718.0,2.68961673]
[1760691481741,0.3362,3718.7,3718.0,2.68956942]
[1760691481946,0.3362,3718.7,3718.1,2.6894901]
[1760691482349,0.3362,3718.7,3716.9,2.6904083]
[1760691482578,0.3362,3718.7,3718.0,2.68957263]
[1760691482946,0.3362,3718.7,3717.9,2.68966862]
[1760691483272,0.3362,3718.7,3718.1,2.68948982]
[1760691483476,0.3362,3718.7,3717.1,0.30646083]
[1760691483656,0.3362,3718.7,3718.1,2.68951198]
[1760691483855,0.04807706,3718.9,3718.1,0.2689512]
[1760691484175,0.0012,3718.9,3718.8,2.68903947]
[1760691484960,0.0012,3718.9,3718.6,2.68917121]
[1760691485156,0.2215,3718.9,3718.1,0.2689512]
[1760691485359,0.0012,3718.9,3718.8,2.68903947]
[1760691485577,0.0012,3718.9,3718.8,19.64400047]
[1760691485780,0.0012,3718.9,3718.8,13.54506847]
[1760691486104,0.0012,3718.9,3718.8,8.62256747]
[1760691486306,0.0012,3718.9,3718.8,8.98000247]
[1760691486474,0.0012,3718.9,3718.8,10.69952775]
[1760691486675,0.0012,3718.9,3718.8,22.24882375]
[1760691487312,1e-08,3719.2,3719.1,17.07470456]
[1760691487473,1e-08,3719.2,3719.1,49.99923915]
[1760691487671,1e-08,3719.6,3719.5,5.0501334]
[1760691487872,1e-08,3719.6,3719.5,20.2120924]
[1760691488073,1e-08,3719.6,3719.5,20.5287924]
[1760691488272,0.002,3721.3,3721.2,2.68730517]
[1760691488586,0.002,3721.3,3721.2,2.82090517]
[1760691488993,0.002,3721.3,3721.2,3.38757542]
[1760691489180,0.002,3721.3,3721.2,11.72357142]
[1760691489382,0.002,3721.3,3721.2,0.70027025]
[1760691489614,0.002,3721.3,3721.2,2.82090517]
[1760691490404,0.002,3721.3,3721.2,8.80324517]
[1760691490605,0.002,3721.3,3721.2,5.79214217]
[1760691491114,0.002,3721.3,3721.2,0.1336]
[1760691491500,0.4358,3721.3,3721.2,0.1336]
[1760691491703,0.4358,3721.3,3719.8,2.68831233]
[1760691491704,0.4358,3721.3,3719.5,15.161959]
[1760691492010,1.0674,3721.2,3719.3,2.68867797]
[1760691492211,0.04884996,3721.3,3719.5,12.658666]
[1760691492413,2.4,3721.2,3721.0,2.68743824]
[1760691492623,2.4,3721.2,3721.1,2.68737738]
[1760691492791,0.002,3721.3,3721.2,2.68730517]
[1760691493114,0.002,3721.3,3721.2,2.69670689]
[1760691493319,0.002,3721.3,3721.2,18.42874432]
[1760691493614,0.002,3721.3,3721.2,8.1626656]
[1760691493816,0.002,3721.3,3721.2,3.2573836]
[1760691494001,0.002,3721.3,3721.2,2.68730517]
[1760691495018,0.002,3721.3,3721.2,14.67057617]
[1760691495220,0.002,3721.3,3721.2,10.00107617]
[1760691495390,0.002,3721.3,3721.2,4.77085817]
[1760691495791,0.0012,3721.3,3721.2,4.77085817]
[1760691495985,0.0012,3721.3,3721.2,4.03333061]
[1760691496193,0.0012,3721.3,3721.2,19.19528961]
[1760691496421,0.0012,3721.3,3721.2,13.89693561]
[1760691496626,0.0012,3721.3,3721.2,9.83083661]
[1760691497110,0.0012,3721.3,3721.2,14.10284061]
[1760691497343,0.0012,3721.3,3721.2,14.73644061]
[1760691497515,0.2203,3723.4,3721.8,2.68687194]
[1760691497715,0.2203,3723.4,3722.0,9.70413956]
[1760691498299,0.2203,3723.4,3722.0,13.47099656]
[1760691498628,0.2203,3722.8,3722.0,6.44930056]
[1760691498924,0.2203,3722.8,3722.0,5.52072756]
[1760691499126,0.4338,3722.7,3722.0,2.68672756]
[1760691499325,0.64166399,3723.4,3722.0,16.04303007]
[1760691499326,1.07546399,3723.4,3722.0,16.04303007]
[1760691499495,0.2203,3722.9,3722.0,3.50748751]
[1760691499700,0.4338,3722.8,3722.0,3.50748751]
[1760691500427,0.42338329,3722.1,3722.0,3.50748751]
[1760691500931,0.26712159,3723.4,3723.3,2.68578948]
[1760691501150,0.2203,3724.1,3723.8,2.68538532]
[1760691501426,0.2203,3724.1,3722.6,2.84468016]
[1760691501427,0.4338,3724.0,3722.7,3.587371]
[1760691501629,0.4338,3724.0,3723.7,2.68543424]
[1760691501929,0.26711394,3724.1,3723.5,2.68560993]
[1760691501930,0.4708,3723.9,3723.5,0.1336]
[1760691502230,30.72113459,3723.7,3721.3,4.540049]
[1760691502417,30.72113459,3723.7,3720.9,3.416255]
[1760691502418,1.728,3723.5,3720.9,3.416255]
[1760691502620,2.3616,3722.6,3721.0,0.3732955]
[1760691502819,1.728,3722.4,3721.4,2.6871119]
[1760691503024,1.728,3722.4,3720.0,2.68817204]
[1760691503025,0.2163,3721.5,3720.0,2.68817204]
[1760691503198,0.2163,3721.5,3719.9,6.677501]
[1760691503199,0.4708,3721.4,3719.9,6.677501]
[1760691503624,0.4708,3721.4,3721.1,2.68736018]
[1760691503849,0.4708,3721.3,3718.9,1.34159798]
[1760691504026,0.6336,3721.2,3719.2,8.683245]
[1760691504336,0.6336,3720.9,3719.3,2.68861474]
[1760691504556,0.2163,3719.4,3719.1,0.1500998]
[1760691504735,0.2163,3719.7,3719.0,6.653748]
[1760691504900,0.4708,3719.3,3718.8,2.69002396]
[1760691505097,0.2163,3718.9,3718.8,0.001]
[1760691506202,0.2163,3718.9,3718.8,2.69003947]
[1760691506437,0.2163,3718.9,3718.8,0.001]
[1760691506735,0.4708,3719.3,3718.9,2.68890492]
[1760691507032,0.4708,3719.2,3718.8,2.69003108]
[1760691507225,0.2163,3718.9,3718.8,0.001]
[1760691507425,0.89261095,3719.6,3718.9,2.68896716]
[1760691507852,0.89261095,3719.6,3718.8,0.001]
[1760691508021,2.833,3719.5,3718.8,0.001]
[1760691508216,1.728,3719.4,3718.8,0.001]
[1760691508521,0.04686783,3719.5,3718.8,0.001]
[1760691508723,0.04686783,3719.5,3719.2,2.68872428]
[1760691508903,0.04686783,3719.5,3719.3,2.6886386]
[1760691509104,0.04686783,3719.5,3718.8,0.001]
[1760691509105,0.4708,3719.4,3718.8,0.001]
[1760691509329,0.2163,3718.9,3718.8,0.001]
[1760691509832,5.2481,3718.9,3718.8,0.001]
[1760691510003,2.3616,3718.8,3718.4,0.001]
[1760691510204,0.6336,3718.8,3718.4,0.001]
[1760691510431,0.4708,3718.7,3718.4,0.001]
[1760691510645,0.6336,3718.6,3718.4,0.001]
[1760691510808,1.728,3718.8,3718.4,0.001]
[1760691511009,0.4708,3718.5,3718.4,0.001]
[1760691512113,5.0318,3718.5,3718.4,0.001]
[1760691512642,5.6654,3718.5,3718.4,0.001]
[1760691512955,35.75293459,3718.5,3718.4,0.001]
[1760691513322,5.45375426,3718.5,3718.4,0.001]
[1760691513506,6.08735426,3718.5,3718.4,0.001]
[1760691513910,4.561,3718.5,3718.4,0.001]
[1760691514154,5.0318,3718.5,3718.4,0.001]
[1760691514357,5.6654,3718.5,3718.4,0.001]
[1760691515511,4.561,3718.5,3718.4,2.69032874]
[1760691515713,4.561,3718.5,3718.4,3.22830811]
[1760691515957,5.0318,3718.5,3718.4,0.001]
[1760691516335,5.6654,3718.5,3718.4,0.001]
[1760691516759,6.08729846,3718.5,3718.4,0.001]
[1760691516959,6.13417867,3718.5,3718.4,0.001]
[1760691518755,5.02977867,3718.5,3718.4,0.001]
[1760691519127,4.60788021,3718.5,3718.4,0.001]
[1760691519623,5.07868021,3718.5,3718.4,0.001]
[1760691519822,5.07788021,3718.5,3718.4,0.001]
[1760691520447,5.71148021,3718.5,3718.4,0.001]
[1760691520630,5.24068021,3718.5,3718.4,0.001]
[1760691520835,5.71148021,3718.5,3718.4,0.001]
[1760691523228,5.24068021,3718.5,3718.4,0.001]
[1760691523647,4.60708021,3718.5,3718.4,0.001]
[1760691523845,5.71148021,3718.5,3718.4,0.001]
[1760691524428,5.24068021,3718.5,3718.4,0.001]
[1760691524857,5.71148021,3718.5,3718.4,0.001]
[1760691525051,6.13337819,3718.5,3718.4,0.001]
[1760691525656,3.30037819,3718.5,3718.4,0.001]
[1760691525862,2.69004657,3717.5,3716.5,0.001]
[1760691526065,2.3616,3717.3,3716.5,0.001]
[1760691526281,30.58150961,3718.5,3717.5,2.68993504]
[1760691526282,0.4708,3718.5,3717.5,2.68993504]
[1760691526426,0.6336,3718.3,3717.6,0.2689935]
[1760691526627,0.42202452,3718.1,3717.4,0.1604]
[1760691526832,1.728,3717.9,3717.2,2.69018822]
[1760691527062,1.728,3717.9,3717.5,2.68997124]
[1760691527248,1.728,3717.9,3717.6,2.68985782]
[1760691527454,1.728,3717.9,3717.6,0.001]
[1760691527659,1.728,3717.9,3717.6,2.69089923]
[1760691527838,1.728,3717.9,3717.6,0.001]
[1760691528043,1.9443,3717.9,3717.6,0.001]
[1760691528382,1.1044,3717.8,3717.6,0.001]
[1760691528930,0.6336,3717.8,3717.6,0.001]
[1760691529165,1.1044,3717.7,3717.6,0.001]
[1760691529463,0.6336,3717.7,3717.6,0.001]
[1760691529655,1.1044,3717.7,3717.6,0.001]
[1760691529848,0.6336,3717.7,3717.6,0.001]
[1760691530581,1.77488644,3717.9,3717.6,0.001]
[1760691531064,0.2163,3717.8,3717.6,0.001]
[1760691531449,1.77488644,3717.9,3717.6,0.001]
[1760691531854,1.77488644,3717.9,3717.6,2.69089958]
[1760691532171,1.77488644,3717.9,3717.6,0.001]
[1760691532369,0.216,3717.7,3717.6,0.001]
[1760691533086,0.6336,3717.8,3717.6,0.001]
[1760691533240,0.4278,3717.7,3717.6,0.001]
[1760691533647,1.0614,3717.7,3717.6,0.001]
[1760691533961,1.05562701,3717.7,3717.6,0.001]
[1760691534159,0.6336,3717.7,3717.6,0.001]
[1760691534468,1.728,3717.9,3717.8,2.68976276]
[1760691534688,1.728,3717.9,3717.6,0.001]
[1760691534970,0.6336,3717.8,3717.6,2.69089477]
[1760691535154,0.6336,3717.8,3717.6,0.001]
[1760691535740,2.833,3717.7,3717.6,0.001]
[1760691535963,2.833,3717.7,3717.6,2.69085617]
[1760691536166,2.833,3717.7,3717.6,3.56108595]
[1760691536378,2.833,3718.0,3717.9,2.68969041]
[1760691536561,2.832,3718.1,3718.0,2.68961807]
[1760691537146,0.6336,3718.2,3717.6,0.55252978]
[1760691537345,0.04687861,3718.7,3717.6,2.69085725]
[1760691537346,0.6336,3718.0,3717.6,2.69085725]
[1760691537546,0.6336,3717.8,3717.7,2.68983511]
[1760691538575,2.3616,3717.8,3717.6,0.001]
[1760691539447,2.7894,3717.8,3717.6,0.001]
[1760691539840,2.3616,3717.8,3717.6,0.001]
[1760691540469,1.728,3717.8,3717.6,0.001]
[1760691540742,0.6336,3717.7,3717.6,0.001]
[1760691541050,0.6336,3717.7,3717.6,2.69090746]
[1760691541361,0.6336,3717.7,3717.6,0.001]
[1760691541751,0.6336,3717.7,3717.6,2.69090746]
[1760691541944,0.6336,3717.7,3717.6,0.001]
[1760691543179,1.1012,3717.7,3717.6,0.001]
[1760691543481,1.1004,3717.7,3717.6,0.001]
[1760691543978,5.51823511,3717.7,3717.6,0.001]
[1760691544476,1.728,3717.6,3715.8,0.1584]
[1760691544775,1.728,3717.4,3715.9,0.63674156]
[1760691545075,1.728,3717.4,3716.0,0.3187]
[1760691545247,0.6336,3717.2,3716.0,0.3187]
[1760691545451,2.3616,3717.0,3716.5,2.69069763]
[1760691545676,2.8292,3717.0,3716.3,2.69081099]
[1760691545886,0.6336,3716.8,3715.9,0.001]
[1760691546070,0.1344,3716.4,3715.9,0.001]
[1760691546283,1.728,3716.2,3716.0,2.69106566]
[1760691546477,2.831,3716.1,3716.0,2.69106566]
[1760691547085,2.831,3716.1,3715.9,0.001]
[1760691547393,0.6336,3716.4,3715.9,0.001]
[1760691547598,1.728,3716.3,3716.1,2.69099324]
[1760691547788,1.728,3716.3,3716.2,0.1584]
[1760691547983,1.728,3716.3,3716.2,2.84932083]
[1760691548895,4.39,3716.4,3716.2,2.84924844]
[1760691549078,4.39,3716.4,3716.2,0.1584]
[1760691549272,4.39,3716.4,3716.3,2.69084842]
[1760691550480,2.662,3716.4,3716.3,2.69084842]
[1760691551170,2.662,3716.4,3715.9,0.001]
[1760691551502,0.6336,3716.2,3715.9,0.001]
[1760691551972,0.6336,3716.0,3715.9,0.001]
[1760691552176,5.1926,3716.0,3715.9,0.001]
[1760691552375,5.6602,3716.0,3715.9,0.001]
[1760691552566,3.9322,3716.0,3715.9,0.001]
[1760691554163,3.4646,3716.0,3715.9,0.001]
[1760691554363,3.4646,3716.0,3715.9,2.69213808]
[1760691554700,3.4646,3716.0,3715.9,0.001]
[1760691555075,3.4646,3716.0,3715.9,2.69213808]
[1760691556271,2.831,3716.0,3715.9,2.69213808]
[1760691556468,3.9322,3716.0,3715.9,0.001]
[1760691556873,3.4646,3716.0,3715.9,0.001]
[1760691557070,3.9322,3716.0,3715.9,0.001]
[1760691557384,3.4646,3716.0,3715.9,0.001]
[1760691558105,2.831,3716.0,3715.9,2.69213808]
[1760691558401,0.04689689,3716.3,3716.2,2.69092083]
[1760691558567,0.42207882,3716.7,3716.6,2.69063122]
[1760691558770,2.831,3717.2,3716.2,2.69092083]
[1760691558771,2.831,3717.2,3716.9,2.69036247]
[1760691558967,0.4676,3717.1,3716.1,0.1584]
[1760691559166,0.6336,3717.0,3716.2,2.69092083]
[1760691559402,0.6336,3716.8,3716.4,2.69072127]
[1760691559604,0.6336,3716.6,3716.4,2.69072127]
[1760691559801,0.6336,3716.6,3716.1,3.19109865]
[1760691559802,0.6336,3716.6,3716.1,0.34177284]
[1760691560003,0.6336,3716.4,3716.0,0.0288]
[1760691560206,0.6336,3716.2,3716.0,0.0288]
[1760691560801,0.4676,3716.1,3716.0,0.0288]
[1760691562712,1.1012,3716.1,3716.0,0.0288]
[1760691563602,1.5233984,3716.1,3716.0,0.0288]
[1760691566711,1.0557984,3716.1,3716.0,0.0288]
[1760691567103,1.0549984,3716.1,3716.0,0.0288]
[1760691567319,0.4221984,3716.1,3716.0,2.71986566]
[1760691567496,3.2521984,3716.1,3716.0,3.71426759]
[1760691567701,2.83,3716.1,3716.0,3.39556759]
[1760691567919,2.83,3716.1,3716.0,3.71426759]
[1760691568118,0.002,3716.6,3716.5,2.69070361]
[1760691568320,2.832,3716.6,3716.5,2.69070361]
[1760691569487,2.832,3716.6,3716.2,0.1344]
[1760691569725,2.832,3716.6,3716.2,2.82530493]
[1760691570020,2.832,3716.6,3716.3,2.69079499]
[1760691570321,2.832,3716.6,3716.2,2.82529553]
[1760691570629,0.6336,3716.5,3716.0,0.1632]
[1760691570860,0.6336,3716.3,3716.0,0.1632]
[1760691571125,0.768,3716.1,3716.0,0.0288]
[1760691572933,0.04690697,3716.3,3716.0,2.71986566]
[1760691573226,1.2726,3716.2,3716.1,0.27208657]
[1760691573525,0.002,3716.6,3716.0,2.71986143]
[1760691573827,0.002,3716.6,3716.1,2.69099263]
[1760691574227,0.002,3716.6,3716.2,0.4771]
[1760691574425,0.002,3716.6,3716.4,2.69072722]
[1760691574626,2.829,3716.5,3716.2,0.1584]
[1760691574840,2.829,3716.5,3716.0,0.0288]
[1760691575200,2.829,3716.5,3716.1,2.84937293]
[1760691575541,0.6336,3716.4,3716.0,0.0288]
[1760691575896,2.829,3716.5,3716.0,2.71985207]
[1760691576126,2.829,3716.5,3716.1,2.69095314]
[1760691576338,2.829,3716.5,3716.0,3.00787622]
[1760691576626,2.829,3716.5,3716.2,2.69092083]
[1760691576834,2.829,3716.5,3716.2,2.69090437]
[1760691577129,2.829,3716.5,3716.4,2.69077601]
[1760691577455,2.829,3716.5,3716.0,0.63552521]
[1760691577625,2.829,3716.5,3716.1,2.69099324]
[1760691577999,2.829,3716.5,3716.0,0.31782521]
[1760691578197,2.831,3716.5,3716.4,2.69077601]
[1760691578394,2.831,3716.5,3716.4,3.26081569]
[1760691578590,2.831,3716.5,3716.4,0.57003968]
[1760691578795,2.831,3716.5,3716.0,0.0298]
[1760691578990,2.831,3716.5,3716.4,2.69077601]
[1760691579195,2.831,3716.5,3716.4,3.00947601]
[1760691579635,2.831,3716.5,3716.4,2.69077601]
[1760691580270,2.831,3716.5,3716.1,2.69099324]
[1760691580566,2.831,3716.5,3716.4,2.69077601]
[1760691580738,2.831,3716.5,3716.2,2.69085179]
[1760691580933,2.831,3716.5,3716.0,0.0298]
[1760691581344,2.831,3716.5,3716.4,2.69077601]
[1760691582656,2.831,3716.5,3716.3,2.69082007]
[1760691582836,2.831,3716.5,3716.3,2.69079803]
[1760691583038,2.831,3716.5,3716.1,2.82539324]
[1760691583225,2.831,3716.5,3716.3,2.69082024]
[1760691583862,2.831,3716.5,3716.4,2.69077601]
[1760691584527,3.2817,3716.5,3716.1,2.82536623]
[1760691584749,3.2817,3716.5,3716.2,2.6909015]
[1760691584938,2.831,3716.5,3716.3,0.1584]
[1760691585136,0.002,3716.5,3716.3,0.45975208]
[1760691585337,0.002,3716.5,3716.4,2.69077601]
[1760691585538,2.829,3716.5,3716.3,0.1344]
[1760691585755,2.829,3716.5,3716.4,2.69077601]
[1760691586360,2.829,3716.5,3716.3,2.82523934]
[1760691586557,2.829,3716.5,3716.4,2.69077601]
[1760691588366,2.829,3716.5,3716.4,3.24237951]
[1760691589562,2.829,3716.5,3716.4,2.69077601]
[1760691591065,2.8282,3716.5,3716.4,2.69077601]
[1760691592739,2.8282,3716.5,3716.3,0.1344]
[1760691592952,2.8282,3716.5,3716.2,2.69084985]
[1760691593153,2.8282,3716.5,3716.3,2.69084268]
[1760691593454,2.8282,3716.5,3716.1,2.82539123]
[1760691593648,2.8282,3716.5,3716.3,2.69083211]
[1760691593845,3.2968,3716.5,3716.3,2.69083211]
[1760691594446,3.2968,3716.5,3716.1,0.1344]
[1760691594648,3.2968,3716.5,3716.3,2.69081021]
[1760691594649,2.8282,3716.5,3716.3,2.69081021]
[1760691595054,2.8282,3716.5,3716.1,2.82535278]
[1760691595253,2.8282,3716.5,3716.1,0.1344]
[1760691595254,3.2968,3716.5,3716.1,0.1344]
[1760691595471,3.2968,3716.5,3716.1,2.82537097]